fUST/lending_fUST_20250603
["ID","MTS","AMOUNT","RATE_DAILY","PERIOD"]
[363887755,1748911842234,-440.0,0.00016986,2]
[363887758,1748911842244,-440.0,0.00016986,2]
[363887760,1748911842254,-410.0,0.00016986,2]
[363887761,1748911842265,-440.0,0.00016986,2]
[363887763,1748911842274,-440.0,0.00016986,2]
[363887766,1748911842285,-410.0,0.00016986,2]
[363887768,1748911842298,-440.0,0.00016986,2]
[363887770,1748911842308,-440.0,0.00016986,2]
[363887772,1748911842318,-440.0,0.00016986,2]
[363887774,1748911842328,-440.0,0.00016986,2]
[363887776,1748911842338,-440.0,0.00016986,2]
[363887778,1748911842348,-551.01128689,0.00016986,2]
[363887780,1748911842359,-410.0,0.00016986,2]
[363887782,1748911842370,-440.0,0.00016986,2]
[363887784,1748911842379,-410.0,0.00016986,2]
[363887785,1748911842389,-382.79591416,0.00016986,2]
[363887787,1748911842399,-410.0,0.00016986,2]
[363887789,1748911842408,-440.0,0.00016986,2]
[363887791,1748911842418,-440.0,0.00016986,2]
[363887792,1748911842428,-440.0,0.00016986,2]
[363887794,1748911842438,-410.0,0.00016986,2]
[363887796,1748911842448,-440.0,0.00016986,2]
[363887798,1748911842458,-440.0,0.00016986,2]
[363887800,1748911842469,-1719.07,0.00016986,2]
[363887802,1748911842479,-440.0,0.00016986,2]
[363887804,1748911842489,-440.0,0.00016986,2]
[363887806,1748911842499,-1636.64,0.00016986,2]
[363887808,1748911842512,-410.0,0.00016986,2]
[363887810,1748911842522,-440.0,0.00016986,2]
[363887811,1748911842532,-410.0,0.00016986,2]
[363887813,1748911842543,-440.0,0.00016986,2]
[363887815,1748911842554,-440.0,0.00016986,2]
[363887816,1748911842565,-410.0,0.00016986,2]
[363887817,1748911842575,-632.4,0.00016986,2]
[363887818,1748911842587,-440.0,0.00016986,2]
[363887819,1748911842597,-500.0,0.00017259,2]
[363887820,1748911842607,-440.0,0.0001726,2]
[363887821,1748911842617,-440.0,0.0001726,2]
[363887822,1748911842628,-420.0,0.0001726,2]
[363887823,1748911842638,-417.16,0.0001726,2]
[363887824,1748911842660,-440.0,0.0001726,2]
[363887825,1748911842671,-440.0,0.0001726,2]
[363887826,1748911842682,-400.0,0.0001726,2]
[363887827,1748911842694,-350.0,0.0001726,2]
[363887828,1748911842710,-440.0,0.0001726,2]
[363887829,1748911842720,-410.0,0.0001726,2]
[363887830,1748911842731,-440.0,0.0001726,2]
[363887831,1748911842741,-440.0,0.0001726,2]
[363887832,1748911842752,-492.92,0.0001726,2]
[363887833,1748911842762,-513.35808768,0.0001726,2]
[363887834,1748911842773,-440.0,0.0001726,2]
[363887835,1748911842783,-410.0,0.0001726,2]
[363887836,1748911842794,-440.0,0.0001726,2]
[363887837,1748911842804,-440.0,0.0001726,2]
[363887838,1748911842815,-440.0,0.0001726,2]
[363887839,1748911842826,-417.99364021,0.0001726,2]
[363887840,1748911842836,-222.76118036,0.0001726,2]
[363887841,1748911842846,-365.01684047,0.0001726,2]
[363887842,1748911842856,-440.0,0.0001726,2]
[363887843,1748911842866,-907.43,0.0001726,2]
[363887844,1748911842876,-440.0,0.0001726,2]
[363887845,1748911842886,-440.0,0.0001726,2]
[363887846,1748911842897,-400.0,0.0001726,2]
[363887847,1748911842907,-479.97,0.0001726,2]
[363887849,1748911842918,-440.0,0.0001726,2]
[363887851,1748911842928,-440.0,0.0001726,2]
[363887853,1748911842938,-440.0,0.0001726,2]
[363887855,1748911842952,-440.0,0.0001726,2]
[363887856,1748911842962,-229.04574517,0.0001726,2]
[363887859,1748911842974,-400.0,0.0001726,2]
[363887861,1748911842984,-400.0,0.0001726,2]
[363887864,1748911842995,-410.0,0.0001726,2]
[363887867,1748911843006,-440.0,0.0001726,2]
[363887870,1748911843016,-765.6,0.0001726,2]
[363887873,1748911843027,-317.03578636,0.0001726,2]
[363887876,1748911843036,-498.61,0.0001726,2]
[363887879,1748911843046,-440.0,0.0001726,2]
[363887882,1748911843056,-524.72,0.0001726,2]
[363887884,1748911843066,-400.0,0.0001726,2]
[363887887,1748911843076,-440.0,0.0001726,2]
[363887889,1748911843086,-1128.87,0.0001726,2]
[363887891,1748911843096,-880.74,0.0001726,2]
[363887893,1748911843107,-582.88,0.0001726,2]
[363887895,1748911843117,-440.0,0.0001726,2]
[363887897,1748911843127,-400.0,0.0001726,2]
[363887899,1748911843138,-380.0,0.0001726,2]
[363887901,1748911843148,-440.0,0.0001726,2]
[363887903,1748911843158,-440.0,0.0001726,2]
[363887905,1748911843168,-440.0,0.0001726,2]
[363887907,1748911843178,-440.0,0.0001726,2]
[363887909,1748911843188,-198.83415897,0.0001726,2]
[363887911,1748911843198,-440.0,0.0001726,2]
[363887913,1748911843210,-440.0,0.0001726,2]
[363887915,1748911843220,-440.0,0.0001726,2]
[363887917,1748911843231,-390.0,0.0001726,2]
[363887921,1748911843241,-350.0,0.0001726,2]
[363887922,1748911843251,-440.0,0.0001726,2]
[363887925,1748911843261,-400.0,0.0001726,2]
[363887927,1748911843275,-420.15,0.0001726,2]
[363887929,1748911843284,-440.0,0.0001726,2]
[363887931,1748911843295,-410.0,0.0001726,2]
[363887933,1748911843306,-196.92,0.0001726,2]
[363887935,1748911843316,-157.56,0.0001726,2]
[363887937,1748911843326,-440.0,0.0001726,2]
[363887940,1748911843338,-501.38,0.0001726,2]
[363887942,1748911843348,-440.0,0.0001726,2]
[363887944,1748911843358,-410.0,0.0001726,2]
[363887946,1748911843368,-400.0,0.0001726,2]
[363887948,1748911843378,-440.0,0.0001726,2]
[363887950,1748911843387,-440.0,0.0001726,2]
[363887952,1748911843397,-400.0,0.0001726,2]
[363887954,1748911843407,-440.0,0.0001726,2]
[363887956,1748911843418,-440.0,0.0001726,2]
[363887958,1748911843428,-400.0,0.0001726,2]
[363887960,1748911843439,-440.0,0.0001726,2]
[363887962,1748911843450,-440.0,0.0001726,2]
[363887964,1748911843460,-440.0,0.0001726,2]
[363887966,1748911843470,-440.0,0.0001726,2]
[363887968,1748911843480,-400.0,0.0001726,2]
[363887970,1748911843490,-400.0,0.0001726,2]
[363887973,1748911843500,-405.92001821,0.0001726,2]
[363887975,1748911843514,-603.63,0.0001726,2]
[363887977,1748911843524,-632.15,0.0001726,2]
[363887979,1748911843534,-890.73,0.0001726,2]
[363887981,1748911843544,-404.69325037,0.0001726,2]
[363887983,1748911843555,-440.0,0.0001726,2]
[363887985,1748911843565,-440.0,0.0001726,2]
[363887987,1748911843575,-440.0,0.0001726,2]
[363887989,1748911843586,-440.0,0.0001726,2]
[363887991,1748911843598,-440.0,0.0001726,2]
[363887993,1748911843608,-400.0,0.0001726,2]
[363887995,1748911843618,-440.0,0.0001726,2]
[363887998,1748911843629,-400.0,0.0001726,2]
[363887999,1748911843639,-440.0,0.0001726,2]
[363888001,1748911843650,-440.0,0.0001726,2]
[363888003,1748911843660,-400.0,0.0001726,2]
[363888005,1748911843671,-440.0,0.0001726,2]
[363888006,1748911843681,-440.0,0.0001726,2]
[363888010,1748911843691,-440.0,0.0001726,2]
[363888012,1748911843703,-440.0,0.0001726,2]
[363888030,1748911843831,-440.0,0.0001726,2]
[363888033,1748911843853,-1719.07,0.0001726,2]
[363888035,1748911843863,-440.0,0.0001726,2]
[363888037,1748911843872,-440.0,0.0001726,2]
[363888039,1748911843881,-1636.64,0.0001726,2]
[363888041,1748911843890,-440.0,0.0001726,2]
[363888043,1748911843900,-440.0,0.0001726,2]
[363888045,1748911843909,-440.0,0.0001726,2]
[363888047,1748911843918,-632.4,0.0001726,2]
[363888049,1748911843928,-500.0,0.00017263,2]
[363888050,1748911843937,-500.0,0.00017533,2]
[363888052,1748911843946,-440.0,0.00017534,2]
[363888054,1748911843957,-440.0,0.00017534,2]
[363888056,1748911843966,-440.0,0.00017534,2]
[363888058,1748911843975,-440.0,0.00017534,2]
[363888060,1748911843984,-440.0,0.00017534,2]
[363888062,1748911843994,-400.0,0.00017534,2]
[363888064,1748911844004,-330.0,0.00017534,2]
[363888066,1748911844013,-492.92,0.00017534,2]
[363888068,1748911844023,-440.0,0.00017534,2]
[363888070,1748911844033,-440.0,0.00017534,2]
[363888072,1748911844042,-440.0,0.00017534,2]
[363888074,1748911844051,-440.0,0.00017534,2]
[363888076,1748911844061,-270.6,0.00017534,2]
[363888078,1748911844071,-907.43,0.00017534,2]
[363888080,1748911844081,-440.0,0.00017534,2]
[363888082,1748911844090,-440.0,0.00017534,2]
[363888084,1748911844099,-479.97,0.00017534,2]
[363888086,1748911844109,-173.70635979,0.00017534,2]
[363888088,1748911844118,-440.0,0.00017534,2]
[363888090,1748911844128,-440.0,0.00017534,2]
[363888092,1748911844138,-309.66,0.00017534,2]
[363888094,1748911844147,-264.24726365,0.00017534,2]
[363888096,1748911844156,-765.6,0.00017534,2]
[363888098,1748911844165,-370.0,0.00017534,2]
[363888100,1748911844175,-524.72,0.00017534,2]
[363888102,1748911844185,-440.0,0.00017534,2]
[363888104,1748911844195,-1128.87,0.00017534,2]
[363888106,1748911844208,-880.74,0.00017534,2]
[363888108,1748911844217,-582.88,0.00017534,2]
[363888110,1748911844228,-390.0,0.00017534,2]
[363888112,1748911844237,-440.0,0.00017534,2]
[363888114,1748911844248,-440.0,0.00017534,2]
[363888116,1748911844258,-350.0,0.00017534,2]
[363888118,1748911844267,-303.23,0.00017534,2]
[363888120,1748911844276,-390.0,0.00017534,2]
[363888122,1748911844286,-440.0,0.00017534,2]
[363888124,1748911844296,-440.0,0.00017534,2]
[363888126,1748911844305,-440.0,0.00017534,2]
[363888128,1748911844315,-440.0,0.00017534,2]
[363888129,1748911844324,-553.31251349,0.00017534,2]
[363888131,1748911844334,-501.38,0.00017534,2]
[363888133,1748911844343,-440.0,0.00017534,2]
[363888135,1748911844353,-390.0,0.00017534,2]
[363888137,1748911844363,-325.31,0.00017534,2]
[363888139,1748911844372,-390.0,0.00017534,2]
[363888141,1748911844382,-440.0,0.00017534,2]
[363888142,1748911844391,-440.0,0.00017534,2]
[363888143,1748911844401,-497.06,0.00017534,2]
[363888144,1748911844410,-440.0,0.00017534,2]
[363888145,1748911844420,-440.0,0.00017534,2]
[363888146,1748911844432,-603.63,0.00017534,2]
[363888147,1748911844442,-632.15,0.00017534,2]
[363888149,1748911844457,-890.73,0.00017534,2]
[363888151,1748911844466,-390.0,0.00017534,2]
[363888153,1748911844476,-440.0,0.00017534,2]
[363888156,1748911844486,-390.0,0.00017534,2]
[363888158,1748911844496,-392.25482467,0.00017534,2]
[363888160,1748911844508,-440.0,0.00017534,2]
[363888162,1748911844518,-440.0,0.00017534,2]
[363888164,1748911844527,-440.0,0.00017534,2]
[363888166,1748911844537,-440.0,0.00017534,2]
[363888168,1748911844547,-440.0,0.00017534,2]
[363888170,1748911844557,-440.0,0.00017534,2]
[363888172,1748911844566,-440.0,0.00017534,2]
[363888174,1748911844576,-440.0,0.00017534,2]
[363888176,1748911844587,-440.0,0.00017534,2]
[363888178,1748911844596,-440.0,0.00017534,2]
[363888180,1748911844606,-440.0,0.00017534,2]
[363888183,1748911844626,-1719.07,0.00017534,2]
[363888185,1748911844636,-1636.64,0.00017534,2]
[363888187,1748911844646,-440.0,0.00017534,2]
[363888189,1748911844656,-440.0,0.00017534,2]
[363888191,1748911844667,-440.0,0.00017534,2]
[363888194,1748911844677,-632.4,0.00017534,2]
[363888196,1748911844687,-500.0,0.00017597,2]
[363888198,1748911844697,-500.0,0.00017597,2]
[363888200,1748911844709,-500.0,0.00017757,2]
[363888202,1748911844719,-440.0,0.00017808,2]
[363888204,1748911844729,-440.0,0.00017808,2]
[363888206,1748911844739,-440.0,0.00017808,2]
[363888208,1748911844750,-400.0,0.00017808,2]
[363888210,1748911844760,-440.0,0.00017808,2]
[363888212,1748911844770,-492.92,0.00017808,2]
[363888214,1748911844780,-440.0,0.00017808,2]
[363888216,1748911844789,-440.0,0.00017808,2]
[363888218,1748911844799,-440.0,0.00017808,2]
[363888220,1748911844809,-400.0,0.00017808,2]
[363888222,1748911844819,-907.43,0.00017808,2]
[363888224,1748911844829,-440.0,0.00017808,2]
[363888226,1748911844839,-440.0,0.00017808,2]
[363888228,1748911844849,-479.97,0.00017808,2]
[363888230,1748911844859,-440.0,0.00017808,2]
[363888232,1748911844868,-582.44362315,0.00017808,2]
[363888234,1748911844878,-765.6,0.00017808,2]
[363888236,1748911844888,-524.72,0.00017808,2]
[363888238,1748911844898,-370.0,0.00017808,2]
[363888240,1748911844908,-1128.87,0.00017808,2]
[363888242,1748911844918,-880.74,0.00017808,2]
[363888244,1748911844928,-582.88,0.00017808,2]
[363888246,1748911844937,-440.0,0.00017808,2]
[363888248,1748911844947,-440.0,0.00017808,2]
[363888250,1748911844960,-440.0,0.00017808,2]
[363888252,1748911844970,-440.0,0.00017808,2]
[363888254,1748911844980,-430.0,0.00017808,2]
[363888256,1748911844990,-360.0,0.00017808,2]
[363888258,1748911845000,-501.38,0.00017808,2]
[363888260,1748911845011,-440.0,0.00017808,2]
[363888263,1748911845021,-318.54206887,0.00017808,2]
[363888265,1748911845031,-380.0,0.00017808,2]
[363888267,1748911845040,-440.0,0.00017808,2]
[363888269,1748911845050,-440.0,0.00017808,2]
[363888271,1748911845060,-603.63,0.00017808,2]
[363888273,1748911845070,-632.15,0.00017808,2]
[363888275,1748911845080,-890.73,0.00017808,2]
[363888276,1748911845090,-440.0,0.00017808,2]
[363888277,1748911845100,-380.0,0.00017808,2]
[363888279,1748911845110,-440.0,0.00017808,2]
[363888281,1748911845120,-440.0,0.00017808,2]
[363888283,1748911845129,-440.0,0.00017808,2]
[363888285,1748911845139,-440.0,0.00017808,2]
[363888287,1748911845151,-440.0,0.00017808,2]
[363888290,1748911845161,-431.69,0.00017808,2]
[363888292,1748911845170,-440.0,0.00017808,2]
[363888294,1748911845180,-440.0,0.00017808,2]
[363888296,1748911845190,-440.0,0.00017808,2]
[363888298,1748911845201,-440.0,0.00017808,2]
[363888300,1748911845211,-1719.07,0.00017808,2]
[363888302,1748911845221,-1636.64,0.00017808,2]
[363888304,1748911845231,-440.0,0.00017808,2]
[363888306,1748911845240,-173.14482156,0.00017808,2]
[363888308,1748911845251,-440.0,0.00017808,2]
[363888310,1748911845260,-632.4,0.00017808,2]
[363888312,1748911845270,-722.80023826,0.000179,2]
[363888314,1748911845280,-1000.0,0.00017945,2]
[363888316,1748911845289,-1000.0,0.00017945,2]
[363888318,1748911845299,-1000.0,0.00017945,2]
[363888320,1748911845310,-1000.0,0.00017945,2]
[363888322,1748911845319,-1000.0,0.00017945,2]
[363888324,1748911845328,-1000.0,0.00017945,7]
[363888326,1748911845338,-1000.0,0.00017945,7]
[363888328,1748911845348,-1000.0,0.00017945,7]
[363888331,1748911845358,-1000.0,0.00017945,7]
[363888333,1748911845368,-1000.0,0.00017945,7]
[363888335,1748911845377,-1000.0,0.00017945,7]
[363888337,1748911845389,-420.0,0.00017962,2]
[363888339,1748911845398,-256.68454723,0.00017988,2]
[363888341,1748911845408,-500.0,0.00018026,2]
[363888343,1748911845418,-301.73177124,0.00018058,2]
[363888345,1748911845428,-500.0,0.00018081,2]
[363888347,1748911845437,-1000.0,0.00018082,2]
[363888349,1748911845447,-1000.0,0.00018082,2]
[363888351,1748911845458,-1000.0,0.00018082,2]
[363888352,1748911845467,-1000.0,0.00018082,2]
[363888353,1748911845477,-1000.0,0.00018082,7]
[363888355,1748911845486,-1000.0,0.00018082,7]
[363888358,1748911845496,-1000.0,0.00018082,7]
[363888360,1748911845508,-1000.0,0.00018082,7]
[363888361,1748911845517,-390.0,0.00018082,2]
[363888363,1748911845527,-440.0,0.00018082,2]
[363888365,1748911845537,-440.0,0.00018082,2]
[363888367,1748911845547,-440.0,0.00018082,2]
[363888369,1748911845556,-492.92,0.00018082,2]
[363888371,1748911845567,-390.0,0.00018082,2]
[363888373,1748911845577,-440.0,0.00018082,2]
[363888375,1748911845588,-440.0,0.00018082,2]
[363888377,1748911845598,-907.43,0.00018082,2]
[363888379,1748911845608,-440.0,0.00018082,2]
[363888381,1748911845617,-390.0,0.00018082,2]
[363888384,1748911845628,-479.97,0.00018082,2]
[363888386,1748911845637,-440.0,0.00018082,2]
[363888388,1748911845647,-765.6,0.00018082,2]
[363888390,1748911845656,-524.72,0.00018082,2]
[363888391,1748911845665,-1128.87,0.00018082,2]
[363888394,1748911845675,-880.74,0.00018082,2]
[363888396,1748911845685,-582.88,0.00018082,2]
[363888398,1748911845698,-440.0,0.00018082,2]
[363888400,1748911845711,-290.52284534,0.00018082,2]
[363888402,1748911845720,-440.0,0.00018082,2]
[363888404,1748911845730,-440.0,0.00018082,2]
[363888406,1748911845740,-501.38,0.00018082,2]
[363888408,1748911845749,-440.0,0.00018082,2]
[363888410,1748911845759,-380.0,0.00018082,2]
[363888413,1748911845770,-301.8,0.00018082,2]
[363888415,1748911845779,-603.63,0.00018082,2]
[363888417,1748911845788,-632.15,0.00018082,2]
[363888418,1748911845798,-890.73,0.00018082,2]
[363888421,1748911845808,-440.0,0.00018082,2]
[363888423,1748911845817,-370.0,0.00018082,2]
[363888425,1748911845827,-440.0,0.00018082,2]
[363888427,1748911845838,-440.0,0.00018082,2]
[363888429,1748911845847,-370.0,0.00018082,2]
[363888431,1748911845857,-380.0,0.00018082,2]
[363888433,1748911845866,-440.0,0.00018082,2]
[363888435,1748911845876,-440.0,0.00018082,2]
[363888437,1748911845886,-440.0,0.00018082,2]
[363888439,1748911845896,-440.0,0.00018082,2]
[363888441,1748911845905,-1719.07,0.00018082,2]
[363888443,1748911845915,-1636.64,0.00018082,2]
[363888445,1748911845924,-370.0,0.00018082,2]
[363888447,1748911845934,-370.0,0.00018082,2]
[363888449,1748911845943,-632.4,0.00018082,2]
[363888451,1748911845955,-722.8002381,0.00018107,2]
[363888453,1748911845964,-212.83419937,0.00018126,2]
[363888455,1748911845974,-423.56953423,0.00018126,2]
[363888457,1748911845984,-842.5625,0.00018126,2]
[363888459,1748911845994,-12668.79298183,0.00018126,2]
[363888461,1748911846003,-160.0,0.00018126,2]
[363888463,1748911846013,-160.0,0.00018126,2]
[363888465,1748911846023,-160.0,0.00018126,2]
[363888467,1748911846032,-229.39799938,0.00018126,2]
[363888469,1748911846041,-500.0,0.00018145,2]
[363888471,1748911846051,-1000.0,0.00018145,2]
[363888473,1748911846060,-205.3503394,0.00018149,2]
[363888475,1748911846070,-722.8002381,0.00018314,2]
[363888477,1748911846079,-440.0,0.00018356,2]
[363888479,1748911846089,-440.0,0.00018356,2]
[363888481,1748911846098,-440.0,0.00018356,2]
[363888484,1748911846107,-492.92,0.00018356,2]
[363888487,1748911846116,-440.0,0.00018356,2]
[363888489,1748911846126,-440.0,0.00018356,2]
[363888491,1748911846137,-907.43,0.00018356,2]
[363888493,1748911846147,-440.0,0.00018356,2]
[363888495,1748911846159,-479.97,0.00018356,2]
[363888499,1748911846169,-190.2,0.00018356,2]
[363888501,1748911846179,-765.6,0.00018356,2]
[363888503,1748911846189,-524.72,0.00018356,2]
[363888505,1748911846198,-1128.87,0.00018356,2]
[363888507,1748911846209,-880.74,0.00018356,2]
[363888509,1748911846219,-582.88,0.00018356,2]
[363888511,1748911846229,-440.0,0.00018356,2]
[363888513,1748911846239,-440.0,0.00018356,2]
[363888515,1748911846248,-151.29663296,0.00018356,2]
[363888517,1748911846258,-501.38,0.00018356,2]
[363888519,1748911846268,-440.0,0.00018356,2]
[363888521,1748911846277,-603.63,0.00018356,2]
[363888523,1748911846287,-632.15,0.00018356,2]
[363888525,1748911846298,-890.73,0.00018356,2]
[363888527,1748911846308,-440.0,0.00018356,2]
[363888529,1748911846320,-440.0,0.00018356,2]
[363888532,1748911846330,-440.0,0.00018356,2]
[363888534,1748911846341,-440.0,0.00018356,2]
[363888536,1748911846351,-440.0,0.00018356,2]
[363888538,1748911846362,-440.0,0.00018356,2]
[363888540,1748911846372,-440.0,0.00018356,2]
[363888542,1748911846382,-1719.07,0.00018356,2]
[363888558,1748911846523,-1636.64,0.00018356,2]
[363888560,1748911846534,-632.4,0.00018356,2]
[363888562,1748911846543,-584.45,0.0001852,2]
[363888564,1748911846554,-722.8002381,0.00018521,2]
[363888566,1748911846563,-440.0,0.0001863,2]
[363888568,1748911846573,-440.0,0.0001863,2]
[363888570,1748911846584,-440.0,0.0001863,2]
[363888572,1748911846594,-492.92,0.0001863,2]
[363888574,1748911846604,-440.0,0.0001863,2]
[363888576,1748911846613,-440.0,0.0001863,2]
[363888578,1748911846623,-440.0,0.0001863,2]
[363888580,1748911846632,-907.43,0.0001863,2]
[363888582,1748911846642,-479.97,0.0001863,2]
[363888584,1748911846651,-765.6,0.0001863,2]
[363888586,1748911846660,-524.72,0.0001863,2]
[363888588,1748911846670,-1128.87,0.0001863,2]
[363888590,1748911846679,-880.74,0.0001863,2]
[363888592,1748911846689,-582.88,0.0001863,2]
[363888594,1748911846698,-440.0,0.0001863,2]
[363888596,1748911846708,-440.0,0.0001863,2]
[363888598,1748911846718,-501.38,0.0001863,2]
[363888600,1748911846727,-440.0,0.0001863,2]
[363888602,1748911846736,-603.63,0.0001863,2]
[363888604,1748911846746,-632.15,0.0001863,2]
[363888606,1748911846756,-890.73,0.0001863,2]
[363888608,1748911846766,-440.0,0.0001863,2]
[363888610,1748911846775,-440.0,0.0001863,2]
[363888612,1748911846785,-440.0,0.0001863,2]
[363888614,1748911846795,-440.0,0.0001863,2]
[363888616,1748911846804,-475.06,0.0001863,2]
[363888618,1748911846814,-440.0,0.0001863,2]
[363888620,1748911846824,-440.0,0.0001863,2]
[363888622,1748911846833,-1719.07,0.0001863,2]
[363888624,1748911846843,-1636.64,0.0001863,2]
[363888626,1748911846853,-632.4,0.0001863,2]
[363888629,1748911846863,-500.0,0.00018691,2]
[363888631,1748911846873,-722.8002381,0.00018728,2]
[363888633,1748911846882,-1584.02548989,0.000189,2]
[363888634,1748911846892,-440.0,0.00018904,2]
[363888637,1748911846902,-440.0,0.00018904,2]
[363888639,1748911846911,-440.0,0.00018904,2]
[363888641,1748911846920,-492.92,0.00018904,2]
[363888643,1748911846930,-415.49,0.00018904,2]
[363888644,1748911846939,-440.0,0.00018904,2]
[363888646,1748911846948,-440.0,0.00018904,2]
[363888648,1748911846960,-907.43,0.00018904,2]
[363888650,1748911846969,-479.97,0.00018904,2]
[363888653,1748911846979,-765.6,0.00018904,2]
[363888654,1748911846989,-524.72,0.00018904,2]
[363888656,1748911846998,-1128.87,0.00018904,2]
[363888658,1748911847008,-880.74,0.00018904,2]
[363888660,1748911847017,-582.88,0.00018904,2]
[363888662,1748911847027,-440.0,0.00018904,2]
[363888665,1748911847037,-440.0,0.00018904,2]
[363888667,1748911847047,-501.38,0.00018904,2]
[363888669,1748911847056,-440.0,0.00018904,2]
[363888671,1748911847065,-603.63,0.00018904,2]
[363888673,1748911847075,-632.15,0.00018904,2]
[363888675,1748911847085,-890.73,0.00018904,2]
[363888677,1748911847094,-440.0,0.00018904,2]
[363888679,1748911847104,-440.0,0.00018904,2]
[363888681,1748911847114,-360.0,0.00018904,2]
[363888683,1748911847124,-440.0,0.00018904,2]
[363888685,1748911847136,-440.0,0.00018904,2]
[363888687,1748911847146,-440.0,0.00018904,2]
[363888689,1748911847156,-1719.07,0.00018904,2]
[363888691,1748911847166,-1636.64,0.00018904,2]
[363888693,1748911847176,-632.4,0.00018904,2]
[363888695,1748911847186,-722.8002381,0.00018934,2]
[363888697,1748911847195,-3455.61,0.00019002,2]
[363888699,1748911847209,-722.8002381,0.00019141,2]
[363888701,1748911847219,-440.0,0.00019178,2]
[363888703,1748911847228,-440.0,0.00019178,2]
[363888705,1748911847237,-413.64,0.00019178,2]
[363888707,1748911847247,-515.60833959,0.00019178,7]
[363888709,1748911847261,-492.92,0.00019178,2]
[363888711,1748911847271,-440.0,0.00019178,2]
[363888713,1748911847280,-440.0,0.00019178,2]
[363888714,1748911847290,-907.43,0.00019178,2]
[363888715,1748911847299,-479.97,0.00019178,2]
[363888716,1748911847309,-765.6,0.00019178,2]
[363888717,1748911847318,-524.72,0.00019178,2]
[363888718,1748911847328,-1128.87,0.00019178,2]
[363888719,1748911847338,-880.74,0.00019178,2]
[363888720,1748911847348,-582.88,0.00019178,2]
[363888721,1748911847358,-440.0,0.00019178,2]
[363888722,1748911847368,-440.0,0.00019178,2]
[363888723,1748911847378,-501.38,0.00019178,2]
[363888724,1748911847388,-440.0,0.00019178,2]
[363888725,1748911847398,-603.63,0.00019178,2]
[363888726,1748911847408,-632.15,0.00019178,2]
[363888727,1748911847418,-890.73,0.00019178,2]
[363888728,1748911847428,-440.0,0.00019178,2]
[363888729,1748911847438,-440.0,0.00019178,2]
[363888730,1748911847448,-440.0,0.00019178,2]
[363888731,1748911847460,-440.0,0.00019178,2]
[363888732,1748911847471,-440.0,0.00019178,2]
[363888733,1748911847481,-1719.07,0.00019178,2]
[363888734,1748911847491,-1636.64,0.00019178,2]
[363888735,1748911847500,-632.4,0.00019178,2]
[363888736,1748911847514,-178.089775,0.00019178,2]
[363888737,1748911847523,-722.8002381,0.00019348,2]
[363888738,1748911847533,-440.0,0.00019452,2]
[363888739,1748911847543,-344.72060574,0.00019452,2]